Cogmind - Beta 14 @@@ ROGUE MODE // 2024.10.12 @ 14:13:19 Player: Glitch Artist Result: Destroyed by G-34 Mercenary with Small Laser Performance ------------- Evolutions (1) 500 Regions Visited (3) 600 Robots Destroyed (27) 135 Value Destroyed (605) 605 Prototype IDs (4) 80 Alien Tech Used (0) 0 Bonus (0) 0 TOTAL SCORE: 1920 Bonus ------- None Cogmind --------- Core Integrity 0/400 Matter 300/300 Energy 244/250 System Corruption 0% Temperature Cool (9) Movement Walking (120) Location -9/Materials Parts ------- > --- POWER (1) -------- Ion Engine > --- PROPULSION (4) --- Aluminum Leg Aluminum Leg Improved Aluminum Leg Improved Flight Unit > --- UTILITY (2) ------ Advanced Targeting Computer Melee Analysis Suite > --- WEAPON (2) ------- Spread Laser Flail > --- INVENTORY (5) ---- Improved Heat Sink High-capacity Storage Unit Light Assault Rifle Peak State ------------ > --- POWER ------------ Light Nuclear Core > --- PROPULSION ------- Aluminum Leg Improved Aluminum Leg Improved Flight Unit > --- UTILITY ---------- Advanced Targeting Computer Melee Analysis Suite > --- WEAPON ----------- Spread Laser Flail > --- INVENTORY -------- Improved Heat Sink High-capacity Storage Unit Light Assault Rifle [Rating: 19] Favorites ----------- Power Ion Engine Engine Ion Engine Power Core Light Nuclear Core Propulsion Flight Unit Leg Aluminum Leg Wheel Wheel Flight Unit Flight Unit Utility Advanced Targeting Computer Device ECM Suite Storage Small Storage Unit Processor Advanced Targeting Computer Weapon Assault Rifle Energy Gun Spread Laser Ballistic Gun Assault Rifle Launcher Grenade Launcher Impact Weapon Flail Build | -11 -10 -10 -9 ------- Run | Yrd Mat Min Mat Slots Evolved 2 | . . . 2 Power . | . . . . Propulsion 2 | . . . 2 Utility . | . . . . Weapon . | . . . . Parts Attached 51 | 6 6 6 33 Power 7 | 1 . 1 5 Engine 6 | 1 . 1 4 Core 1 | . . . 1 Reactor . | . . . . Propulsion 21 | 2 1 2 16 Treads . | . . . . Leg 3 | . . . 3 Wheel 3 | 2 1 . . Hover . | . . . . Flight 15 | . . 2 13 Utility 10 | 1 2 1 6 Device 3 | . . 1 2 Storage 3 | 1 1 . 1 Processor 4 | . 1 . 3 Hackware . | . . . . Protection . | . . . . Artifact . | . . . . Weapon 13 | 2 3 2 6 Energy Gun 2 | . . . 2 Energy Cannon . | . . . . Ballistic Gun 8 | 2 2 2 2 Ballistic Cannon . | . . . . Launcher 1 | . 1 . . Special Weapon . | . . . . Impact Weapon 2 | . . . 2 Slashing Weapon . | . . . . Piercing Weapon . | . . . . Special Melee Weapon . | . . . . Unidentified Prototypes . | . . . . Parts Lost 12 | . 3 . 9 Power 1 | . . . 1 Propulsion 8 | . 2 . 6 Utility 1 | . . . 1 Weapon 2 | . 1 . 1 Highest Loss Streak 5 | . 3 . 5 To Critical Strikes . | . . . . Average Slot Usage (%) 89 | . 88 93 89 Engine 11 | . 14 14 9 Leg 3 | . . . 6 Wheel 5 | . 19 1 . Flight 20 | . . 24 28 Device 6 | . . 8 8 Storage 3 | . 14 1 . Processor 13 | . 12 14 13 Energy Gun 1 | . . . 3 Ballistic Gun 17 | . 21 28 14 Launcher 1 | . 5 . . Impact Weapon 2 | . . . 4 Peak Build Rating 19 | 6 7 7 19 Average Rating 9 | 4 6 6 12 On Entrance 4 | . 6 6 7 Naked Turns . | . . . . Heaviest Build 49 | 12 49 49 13 Greatest Support 33 | 20 20 16 33 Greatest Overweight (x) 4 | . 4 3 4 Average Overweight (x) . | . . . . Largest Inventory Capacity 20 | 8 20 20 20 Average Capacity 6 | 7 10 7 5 Most Carried 6 | 2 4 6 5 Average Carried 3 | . 1 4 4 Final Capacity 20 | 8 20 5 5 Final Carried 5 | . 3 5 3 Class Distribution -------------------- 51% | Mutant 34% | Scavenger-Mutant 9% | Scavenger-Sprinter 3% | Sprinter Dominant Class ---------------- Mutant | -10/Materials Mutant | -10/Mines Scavenger-Mutant | -9/Materials Resources | -11 -10 -10 -9 ----------- Run | Yrd Mat Min Mat Matter Collected 970 | 153 80 139 598 Remotely . | . . . . Salvage Created 775 | . 80 95 600 Parts 54 | . 2 12 40 Haulers Intercepted . | . . . . Recyclers Shooed 2 | . . . 2 Parts Field Recycled . | . . . . Retrieved Matter . | . . . . Parts Self-Destructed . | . . . . Prevented . | . . . . Kills | -11 -10 -10 -9 ------- Run | Yrd Mat Min Mat Combat Hostiles Destroyed 18 | . 2 5 11 Guns 18 | . 2 5 11 Classes Destroyed 9 | . 1 2 6 Worker 4 | . . 1 3 Builder 2 | . . . 2 Recycler 1 | . . . 1 Operator 1 | . . . 1 Watcher 1 | . . . 1 Swarmer 5 | . . 5 . Grunt 10 | . 2 . 8 Duelist 1 | . . . 1 Sentry 2 | . . . 2 Best Kill Streak 4 | . 2 4 3 Combat Bots Only 3 | . 2 3 3 Max Kills in Single Turn 1 | . 1 1 1 Gunslinging . | . . . . Exploded . | . . . . Melee . | . . . . Uniques/NPCs Destroyed . | . . . . Combat | -11 -10 -10 -9 -------- Run | Yrd Mat Min Mat Hostile Shots Fired 156 | . 36 21 99 Missed 41 | . 6 11 24 Damage Taken 1594 | . 405 92 1097 Core 504 | . 70 28 406 Absorbed by Shields . | . . . . Regen/Repaired (Parts) 93 | . . . 93 Core Remaining (%) 80 | 100 . 60 . Volleys Fired 98 | . 17 10 71 Largest 2 | . 2 2 2 Hottest 65 | . 50 40 65 Shots Fired 155 | . 29 21 105 Gun 154 | . 28 21 105 Cannon . | . . . . Launcher 1 | . 1 . . Special . | . . . . Kinetic 128 | . 28 21 79 Thermal 26 | . . . 26 Explosive 1 | . 1 . . Electromagnetic . | . . . . Robot Hit Streak 31 | . 9 6 31 Robot Miss Streak 7 | . 4 7 5 Penetration Max . | . . . . Secondary Targets 1 | . . 1 . Max Gunslinging Chain 1 | . . 1 . Shots Hit Robots 115 | . 20 13 82 Core Hits 73 | . 5 6 62 Critical Kills . | . . . . Critical Parts Destroyed . | . . . . Critical Strikes . | . . . . Melee Attacks 1 | . . . 1 Impact 1 | . . . 1 Slashing . | . . . . Piercing . | . . . . Sneak Attacks 1 | . . . 1 Combat Hostiles . | . . . . Follow-up Attacks . | . . . . Damage Inflicted 1486 | . 270 148 1068 Guns 1369 | . 247 148 974 Cannons . | . . . . Explosions 23 | . 23 . . Melee 94 | . . . 94 Ramming . | . . . . Kinetic 1006 | . 247 148 611 Thermal 363 | . . . 363 Explosive 23 | . 23 . . Electromagnetic . | . . . . Impact 94 | . . . 94 Slashing . | . . . . Piercing . | . . . . Highest Corruption 5 | . 5 5 . Average Corruption 4 | . 4 5 . Corruption Purged . | . . . . Corruption Blocked . | . . . . Effects 4 | . . 4 . Message Errors 2 | . . 2 . Data Loss (minor) 1 | . . 1 . Misfires 1 | . . 1 . Overload Shots . | . . . . Overflow Damage . | . . . . Projectiles . | . . . . Explosions . | . . . . Melee . | . . . . Knockbacks . | . . . . Impact . | . . . . Kinetic . | . . . . Secondary . | . . . . Self-Inflicted Damage . | . . . . Shots . | . . . . Rammed . | . . . . Targets Rammed . | . . . . Kicked . | . . . . Crushed . | . . . . Highest Temperature 182 | . 7 14 182 Average Temperature 26 | . 3 7 29 Received Heat Transfer 738 | . 264 27 447 Siege Activations . | . . . . Robots Corrupted . | . . . . Combat Hostiles . | . . . . Parts Fried . | . . . . Impact Corruptions . | . . . . Robots Melted . | . . . . Combat Hostiles . | . . . . Parts Melted . | . . . . Heat Transferred 470 | . . . 470 Parts Sabotaged . | . . . . Parts Stolen . | . . . . Parts Stripped . | . . . . Power Chain Reactions . | . . . . Alert | -11 -10 -10 -9 ------- Run | Yrd Mat Min Mat Peak Influence 292 | . 139 194 292 Initial 75 | . . 54 75 Average 116 | . 86 170 126 Maximum Alert Level 1 | . . . 1 Low Security (%) 92 | 100 100 100 87 Level 1 7 | . . . 12 Level 2 . | . . . . Level 3 . | . . . . Level 4 . | . . . . Level 5 . | . . . . High Security . | . . . . Max Security . | . . . . Squads Dispatched 6 | . 1 . 5 Investigation 2 | . . . 2 Extermination . | . . . . Reinforcement 4 | . 1 . 3 Assault . | . . . . Garrison . | . . . . Intercept . | . . . . Searches Triggered . | . . . . Construction Impeded . | . . . . Haulers Reinforced . | . . . . Active Scanning Responses . | . . . . Cargo Convoy Interrupts . | . . . . Stealth | -11 -10 -10 -9 --------- Run | Yrd Mat Min Mat Distress Signals 2 | . 1 . 1 Communications Jammed . | . . . . Distress Signals . | . . . . Times Spotted 50 | . 8 8 34 Peak Tracking Total 7 | . 4 3 7 Tactical Retreats 9 | . 1 1 7 Traps | -11 -10 -10 -9 ------- Run | Yrd Mat Min Mat Traps Triggered 3 | . 3 . . Indirectly . | . . . . Trap Hack Attempts . | . . . . Triggered . | . . . . Disarmed . | . . . . Reprogrammed . | . . . . Reused . | . . . . Traps Extracted . | . . . . Installed . | . . . . Triggered . | . . . . Machines | -11 -10 -10 -9 ---------- Run | Yrd Mat Min Mat Machines Disabled . | . . . . Max in Single Turn . | . . . . Machines Repaired . | . . . . Machines Dismantled . | . . . . Machines Sabotaged . | . . . . Overloaded Fab Kills . | . . . . Hacking | -11 -10 -10 -9 --------- Run | Yrd Mat Min Mat Machines Accessed 11 | . 6 . 5 Terminals 9 | . 5 . 4 Fabricators . | . . . . Repair Stations 1 | . . . 1 Recycling Units 1 | . 1 . . Scanalyzers . | . . . . Garrison Access . | . . . . Total Hacks 28 | . 13 . 15 Successful 16 | . 8 . 8 Failed 12 | . 5 . 7 Catastrophic 6 | . 3 . 3 Database Lockouts . | . . . . Manual 1 | . 1 . . Terminals 23 | . 12 . 11 Fabricators . | . . . . Repair Stations 4 | . . . 4 Recycling Units 1 | . 1 . . Scanalyzers . | . . . . Garrison Access . | . . . . Terminal Hacks 11 | . 7 . 4 Prototype ID Bank 2 | . 1 . 1 Scanalyzer Index 1 | . 1 . . Alert Level 1 | . . . 1 Unreport Threat 1 | . . . 1 Locate Traps 1 | . 1 . . Maintenance Status 1 | . 1 . . Security Status 1 | . 1 . . Recall Investigation 1 | . . . 1 Hauler Manifests 1 | . 1 . . Zone Layout 1 | . 1 . . Fabricator Hacks . | . . . . Repair Station Hacks 4 | . . . 4 Scan Component 2 | . . . 2 Repair 2 | . . . 2 Recycling Unit Hacks 1 | . 1 . . Report Inventory 1 | . 1 . . Scanalyzer . | . . . . Garrison Access Hacks . | . . . . Unauthorized Hacks . | . . . . Terminals . | . . . . Fabricators . | . . . . Repair Stations . | . . . . Recycling Units . | . . . . Scanalyzers . | . . . . Garrison Access . | . . . . Data Cores Recovered . | . . . . Used . | . . . . Hacking Detections 9 | . 4 . 5 Full Trace Events 3 | . 1 . 2 Feedback Events . | . . . . Feedback Blocked . | . . . . Robot Schematics Acquired . | . . . . Robots Built . | . . . . Authchips . | . . . . Time . | . . . . Total Robot Build Rating . | . . . . Part Schematics Acquired . | . . . . Parts Built . | . . . . Authchips . | . . . . Time . | . . . . Total Part Build Rating . | . . . . Parts Repaired 2 | . . . 2 Time 83 | . . . 83 Parts Recycled . | . . . . Recycled Matter . | . . . . Retrieved Matter . | . . . . Retrieved Components . | . . . . Parts Scanalyzed . | . . . . Part Schematics Acquired . | . . . . Parts Damaged . | . . . . Bothacking | -11 -10 -10 -9 ------------ Run | Yrd Mat Min Mat Used RIF Installer . | . . . . Robots Hacked . | . . . . Non-combat . | . . . . Combat . | . . . . Robot Hacks Applied . | . . . . Relay Couplers Released . | . . . . Fabnet Peak Effective % . | . . . . Robots Rewired . | . . . . Allies Hacked . | . . . . Hacks Repelled . | . . . . Allies | -11 -10 -10 -9 -------- Run | Yrd Mat Min Mat Total Allies . | . . . . Largest Group . | . . . . Highest-Rated Group . | . . . . Highest-Rated Ally . | . . . . Total Orders . | . . . . Ally Attacks . | . . . . Total Damage . | . . . . Kills . | . . . . Allies Corrupted . | . . . . Allies Melted . | . . . . Intel | -11 -10 -10 -9 ------- Run | Yrd Mat Min Mat Robot Analysis Total . | . . . . Derelict Logs Recovered . | . . . . Drone Launches . | . . . . Drone Recoveries . | . . . . Exploration | -11 -10 -10 -9 ------------- Run | Yrd Mat Min Mat Turns Passed 1524 | 63 389 169 903 Spaces Moved 1168 | 66 303 194 605 Core 25 | 5 8 . 12 Treads . | . . . . Legs 101 | . . . 101 Wheels 362 | 61 295 6 . Hover . | . . . . Flight 680 | . . 188 492 Fastest Speed 31 | 50 80 37 31 Average Speed 64 | 77 98 49 51 Slowest Speed 250 | 80 250 145 250 Overloaded Moves . | . . . . Propulsion Burnouts . | . . . . Robots Hopped 2 | . . 1 1 Cave-ins Triggered . | . . . . Exploration Rate (%) 32 | 4 42 47 37 Regions Visited 3 Branch Regions 1 Pre-discovered Areas . | . . . . Known Exits Taken . | . . . . Unknown Exits Taken 3 | 1 1 1 . Scrap Searched 1 | . . 1 . Spaces Dug . | . . . . Terrain Destroyed 6 | . 6 . . Melee . | . . . . Projectile . | . . . . AOE 6 | . 6 . . Terrain Rammed . | . . . . Walls Destroyed . | . . . . Machines Disabled . | . . . . Actions | -11 -10 -10 -9 --------- Run | Yrd Mat Min Mat Total 1780 | 77 366 247 1090 Wait 419 | . 29 29 361 Move 1161 | 65 302 191 603 Hop 2 | . . 1 1 Pick Up 33 | 6 9 5 13 Fast Attach 3 | . . 1 2 Attach 24 | 6 3 1 14 Detach 2 | . . 1 1 Swap 24 | . 3 4 17 Drop 13 | . 3 4 6 Fire 98 | . 17 10 71 Melee 1 | . . . 1 Ram . | . . . . Kick . | . . . . Crush . | . . . . Escape Stasis . | . . . . Rewire . | . . . . Trap . | . . . . Miscellaneous . | . . . . Route ------- -11/Scrapyard -10/Materials -10/Mines (discovered 2 exits: *Mat x2) -9/Materials History --------- Turn | Location | Event 18 | -11/Scrapyard | Discovered new exit (range 15) 64 | -11/Scrapyard | Entered Materials 300 | -10/Materials | Build established: Mutant 301 | -10/Materials | Lost 3 parts (2n1w) 429 | -10/Materials | Discovered new exit (range 12) 453 | -10/Materials | Entered Mines 565 | -10/Mines | Discovered new exit (range 14) 588 | -10/Mines | Discovered new exit (range 13) 622 | -10/Mines | Entered Materials 622 | -9/Materials | Evolved 2 slots: Propulsion x2 959 | -9/Materials | Build established: Scavenger-Mutant 1184 | -9/Materials | Repaired Imp. Flight Unit 1252 | -9/Materials | Core integrity fell below 50% 1286 | -9/Materials | Lost 5 parts (3n1u1w) 1303 | -9/Materials | Core integrity fell below 20% 1472 | -9/Materials | Repaired Spread Laser 1525 | -9/Materials | Destroyed by G-34 Mercenary with Small Laser Last Messages --------------- Ready to Repair: Spread Laser Rating: 2 Time: 32 >>Repair Repairing Spread Laser... ETC: 32 01440_ ALERT: Suspicious activity at Repair Station M002. Dispatching Investigation squad. 01454_ K-01 Serf collects debris. 01457_ K-01 Serf cleans the Material Processor. 01461_ K-01 Serf collects debris. 01472_ Repair station completes Spread Laser repairs. 01474_ Acquired Spread Laser. 01477_ R-06 Scavenger collects Aluminum Leg. 01481_ R-06 Scavenger collects Sml. Laser. 01487_ R-06 Scavenger collects Heat Sink. 01505_ G-34 Mercenary destroyed. 01506_ Acquired 43 matter. Map ----- +----------------------------------------------------+ | ?????????????????????????????????????????????????? | | ?????????????????????????????????????????????????? | | ?????????????????????????????????????????????????? | | ?????????????????????????????????????????????????? | | ?????????????????????????????????????????????????? | | ????????????????????##########???????????????????? | | ????????????????????# #???????????????????? | | ????????????????????#" #???????????????????? | | ?????????????? ???#T !##??????????????????? | | ????????????? #" =! #??????????????????? | | ????????????? / //*##??????????????????? | | ????????????????????# / ########????????????? | | ????????????????????# / + #????????????? | | ????????????????????# ###### #????????????? | | ????????????????? ??# #????# #????????????? | | ????????????????" ?##########??###/#######??????? | | ???????????????"" ?????????????# #??????? | | ????????????????" ????????????# """ #??????? | | ?????????????? "" ############# """"" ####???? | | ?????????????? """ ! =%+=""""" """#???? | | ??????????? ?? "" ##### ####*""""" R"#???? | | ??????????? """ ??####g#### """ """#???? | | ??????????? " ??# * ## ####??## | | ?????????? ?#! ! ## ####### | | ?????????? ?# #########+## # | | ????????? #@ #??# # | | ????????? # "T" #??# T + | | ????????? + """ #??# """ ] # | | ????????? ########??# """ # | | ????????? ??????????# """ ####### | | ?????????? ?????????? | | ?????????? ???????? | | ??????????? """ !!! ????????? | | ?????????????"" !!!##???????? ##+#########+#### | | ?????????????"" !! ?????????"!" ? ??????????????? | | ????????????? ??????????"?"?????????????????? | | ???????????? ???????????????????????????????? | | ?????????????"" ????????????????????????????????? | | ??????????????" ????????????????????????????????? | | ??????????????? ?????????????????????????????????? | | ?????????????????????????????????????????????????? | | ?????????????????????????????????????????????????? | | ?????????????????????????????????????????????????? | | ?????????????????????????????????????????????????? | | ?????????????????????????????????????????????????? | | ?????????????????????????????????????????????????? | | ?????????????????????????????????????????????????? | | ?????????????????????????????????????????????????? | | ?????????????????????????????????????????????????? | | ?????????????????????????????????????????????????? | +----------------------------------------------------+ Best States ------------- Heat Dissipation 42 Energy Generation 14 Energy Capacity 265 Matter Stores 300 Matter Capacity 300 Sight Range 16 Terrain Scan Density 10 ECM Strength 1 Evasion (%) 63 Targeting Accuracy 16 Melee Accuracy 5 Item Schematics ----------------- None Robot Schematics ------------------ None Fabricated ------------ Nothing Alien Tech Used ----------------- None Achievements -------------- None Challenges ------------ None Game ------ Seed ReactiveAntimissileCore Manual? 0 Play Time 00:22:53 Cumulative 5.2 hours Start 2024.10.12 @ 13:54:42 End 2024.10.12 @ 14:13:19 Sessions 1 Manual Loads 0 Difficulty Rogue Special Mode None Game No. 9 Rogue 7 Adventurer 0 Explorer 2 Win Type - Total 0 Types 0/0/0/0/0/0/0/0/0 Lore% 2 Gallery% 12 Achievement% 16 Wizard Run 0 Options --------- Layout 1 ASCII 0 Keyboard 0 Movement Arrows Keybinds 0 Fullscreen 2 Font 24/X11 Map View 50x35 Zoom Use 0% Tactical HUD 1 Map Filters NONE Filters NONE Steam 1 RUN: ca91ede3-fb50-41dd-a262-d629cfce288a